fUSD/lending_fUSD_20251109
["ID","MTS","AMOUNT","RATE_DAILY","PERIOD"]
[393453432,1762678239123,-300.0,0.0001701,2]
[393453433,1762678239133,-26116.59169728,0.00017015,2]
[393453434,1762678239144,-250.0,0.00017057,2]
[393453435,1762678239154,-300.0,0.00017057,2]
[393453436,1762678239165,-268.29172005,0.00017057,2]
[393453437,1762678239176,-151.17577208,0.00017084,2]
[393453438,1762678239185,-150.0,0.00017084,2]
[393453439,1762678239196,-446.0,0.00017084,2]
[393453440,1762678239206,-500.0,0.00017084,2]
[393453441,1762678239217,-281.92420023,0.00017084,2]
[393453442,1762678239227,-4732.0,0.00017093,2]
[393453443,1762678239237,-178.94135297,0.00017096,2]
[393453444,1762678239247,-300.0,0.00017096,2]
[393453445,1762678239257,-300.0,0.00017096,2]
[393453446,1762678239267,-195.0,0.00017096,2]
[393453447,1762678239278,-259.0,0.00017122,2]
[393453448,1762678239288,-1680.0,0.00017123,2]
[393453449,1762678239298,-420.0,0.00017123,2]
[393453450,1762678239308,-300.0,0.00017144,2]
[393453451,1762678239318,-195.0,0.00017144,2]
[393453452,1762678239327,-26116.59169728,0.00017163,2]
[393453453,1762678239337,-300.0,0.00017191,2]
[393453454,1762678239348,-300.0,0.00017191,2]
[393453455,1762678239358,-195.0,0.00017191,2]
[393453456,1762678239368,-2500.0,0.00017191,2]
[393453457,1762678239378,-3676.96633259,0.00017191,4]
[393453458,1762678239387,-399.0,0.0001721,2]
[393453459,1762678239399,-1680.0,0.0001721,2]
[393453460,1762678239409,-5000.0,0.0001721,2]
[393453461,1762678239419,-1000.0,0.00017221,2]
[393453462,1762678239429,-1000.0,0.00017221,2]
[393453463,1762678239439,-1000.0,0.00017221,2]
[393453464,1762678239448,-162.27802841,0.00017221,2]
[393453465,1762678239458,-446.0,0.00017221,2]
[393453466,1762678239468,-500.0,0.00017221,2]
[393453467,1762678239478,-4732.0,0.00017246,2]
[393453468,1762678239487,-4732.0,0.00017252,2]
[393453469,1762678239497,-595.50227902,0.000173,2]
[393453470,1762678239507,-150.35092771,0.00017309,2]
[393453471,1762678239516,-26116.59169728,0.0001731,2]
[393453472,1762678239525,-4732.0,0.00017328,2]
[393453473,1762678239535,-399.0,0.00017347,2]
[393453474,1762678239545,-446.0,0.00017358,2]
[393453475,1762678239554,-500.0,0.00017358,2]
[393453476,1762678239564,-500.0,0.00017364,2]
[393453477,1762678239574,-168.0,0.00017437,2]
[393453478,1762678239584,-168.0,0.00017449,2]
[393453479,1762678239593,-26116.59169728,0.00017458,2]
[393453480,1762678239602,-168.0,0.0001747,2]
[393453481,1762678239612,-446.0,0.00017495,2]
[393453482,1762678239622,-500.0,0.00017495,2]
[393453483,1762678239631,-2000.0,0.000175,6]
[393453484,1762678239640,-4911.0,0.00017509,2]
[393453485,1762678239650,-338.57656952,0.00017534,2]
[393453486,1762678239660,-4732.0,0.00017548,2]
[393453487,1762678239670,-1663.644,0.0001758,2]
[393453488,1762678239680,-151.6,0.0001758,2]
[393453489,1762678239690,-3100.0,0.000176,6]
[393453490,1762678239701,-151.0,0.00017602,2]
[393453491,1762678239712,-26116.59169728,0.00017605,2]
[393453492,1762678239722,-446.0,0.00017632,2]
[393453493,1762678239732,-500.0,0.00017632,2]
[393453494,1762678239741,-6806.0,0.0001767,2]
[393453495,1762678239752,-272.0,0.00017674,2]
[393453496,1762678239762,-4100.0,0.000177,6]
[393453497,1762678239772,-178.62,0.00017705,2]
[393453498,1762678239781,-168.0,0.00017714,2]
[393453499,1762678239791,-1726.84557519,0.00017723,2]
[393453500,1762678239801,-26116.59169728,0.00017753,2]
[393453501,1762678239810,-500.0,0.00017753,2]
[393453502,1762678239820,-168.0,0.00017754,2]
[393453503,1762678239830,-1500.0,0.00017768,2]
[393453504,1762678239845,-1500.0,0.00017768,2]
[393453505,1762678239854,-1500.0,0.00017768,2]
[393453506,1762678239864,-446.0,0.00017769,2]
[393453507,1762678239874,-500.0,0.00017769,2]
[393453508,1762678239885,-5200.0,0.000178,6]
[393453509,1762678239895,-1348.51409,0.0001782,2]
[393453510,1762678239905,-168.0,0.00017848,2]
[393453511,1762678239915,-2000.0,0.00017856,2]
[393453512,1762678239925,-200.0,0.00017856,2]
[393453513,1762678239935,-168.0,0.00017888,2]
[393453514,1762678239944,-443.80642507,0.00017898,2]
[393453515,1762678239954,-1161.79199787,0.000179,2]
[393453516,1762678239963,-1000.0,0.000179,6]
[393453517,1762678239974,-26116.59169728,0.000179,2]
[393453518,1762678239984,-190.10232692,0.000179,3]
[393453519,1762678239993,-255.64777619,0.000179,2]
[393453520,1762678240003,-403.59059448,0.000179,2]
[393453521,1762678240012,-446.0,0.00017906,2]
[393453522,1762678240022,-500.0,0.00017906,2]
[393453523,1762678240035,-1348.5141,0.0001793,2]
[393453524,1762678240046,-500.0,0.00017973,2]
[393453525,1762678240057,-505.15717151,0.00017973,2]
[393453526,1762678240066,-500.0,0.00017973,2]
[393453527,1762678240076,-501.45300556,0.00017973,2]
[393453528,1762678240086,-502.47934008,0.00017973,2]
[393453529,1762678240095,-500.0,0.00017973,2]
[393453530,1762678240105,-500.0,0.00017973,2]
[393453531,1762678240115,-501.75808297,0.00017973,2]
[393453532,1762678240124,-500.0,0.00017973,2]
[393453533,1762678240134,-500.97801948,0.00017973,2]
[393453534,1762678240144,-500.0,0.00017973,2]
[393453535,1762678240154,-151.0,0.00017995,2]
[393453536,1762678240164,-151.0,0.00017997,2]
[393453537,1762678240174,-1618.2542784,0.00017998,2]
[393453538,1762678240184,-54991.8474132,0.00017998,2]
[393453539,1762678240194,-435835.1733907,0.00017998,2]
[393453540,1762678240203,-151.0,0.00017998,2]
[393453541,1762678240213,-151.0,0.00017998,2]
[393453542,1762678240226,-151.0,0.00017998,2]
[393453543,1762678240237,-151.0,0.00017998,2]
[393453544,1762678240246,-151.0,0.00017998,2]
[393453545,1762678240256,-151.0,0.00017998,2]
[393453546,1762678240265,-151.0,0.00017998,2]
[393453547,1762678240275,-151.0,0.00017998,2]
[393453548,1762678240284,-151.0,0.00017998,2]
[393453549,1762678240294,-151.0,0.00017998,2]
[393453550,1762678240304,-151.0,0.00017998,2]
[393453551,1762678240313,-151.0,0.00017998,2]
[393453552,1762678240323,-151.0,0.00017998,2]
[393453553,1762678240332,-151.0,0.00017998,2]
[393453554,1762678240342,-151.0,0.00017998,2]
[393453555,1762678240351,-151.0,0.00017998,2]
[393453556,1762678240362,-151.0,0.00017998,2]
[393453557,1762678240371,-151.0,0.00017998,2]
[393453558,1762678240381,-154.737705,0.00017998,2]
[393453559,1762678240391,-151.0,0.00017998,2]
[393453560,1762678240401,-151.0,0.00017998,2]
[393453561,1762678240416,-151.0,0.00017998,2]
[393453562,1762678240426,-151.0,0.00017998,2]
[393453563,1762678240437,-151.0,0.00017998,2]
[393453564,1762678240447,-151.0,0.00017998,2]
[393453565,1762678240456,-151.0,0.00017998,2]
[393453566,1762678240466,-166.384495,0.00017998,2]
[393453567,1762678240476,-240.113776,0.00017998,2]
[393453568,1762678240486,-151.0,0.00017998,2]
[393453569,1762678240496,-151.792528,0.00017998,2]
[393453570,1762678240506,-165.304444,0.00017998,2]
[393453571,1762678240515,-153.227742,0.00017998,2]
[393453572,1762678240525,-153.227742,0.00017998,2]
[393453573,1762678240534,-153.227742,0.00017998,2]
[393453574,1762678240544,-151.0,0.00017998,2]
[393453575,1762678240554,-153.227742,0.00017998,2]
[393453576,1762678240563,-151.0,0.00017998,2]
[393453577,1762678240573,-151.0,0.00017998,2]
[393453578,1762678240582,-151.0,0.00017998,2]
[393453579,1762678240592,-151.0,0.00017998,2]
[393453580,1762678240602,-153.321094,0.00017998,2]
[393453581,1762678240612,-151.0,0.00017998,2]
[393453582,1762678240622,-151.0,0.00017998,2]
[393453583,1762678240631,-151.0,0.00017998,2]
[393453584,1762678240641,-151.0,0.00017998,2]
[393453585,1762678240652,-151.0,0.00017998,2]
[393453586,1762678240662,-151.0,0.00017998,2]
[393453587,1762678240672,-151.0,0.00017998,2]
[393453588,1762678240682,-151.0,0.00017998,2]
[393453589,1762678240692,-151.0,0.00017998,2]
[393453590,1762678240701,-274.681251,0.00017998,2]
[393453591,1762678240711,-151.0,0.00017998,2]
[393453593,1762678240720,-151.0,0.00017998,2]
[393453594,1762678240730,-166.763674,0.00017998,2]
[393453595,1762678240739,-151.0,0.00017998,2]
[393453596,1762678240751,-151.0,0.00017998,2]
[393453597,1762678240762,-151.0,0.00017998,2]
[393453598,1762678240772,-151.0,0.00017998,2]
[393453599,1762678240785,-151.0,0.00017998,2]
[393453600,1762678240797,-151.0,0.00017998,2]
[393453601,1762678240806,-684.140118,0.00017998,2]
[393453602,1762678240816,-162.247724,0.00017998,2]
[393453603,1762678240827,-151.0,0.00017998,2]
[393453604,1762678240964,-151.0,0.00017998,2]
[393453605,1762678240974,-684.140118,0.00017998,2]
[393453606,1762678240984,-151.0,0.00017998,2]
[393453607,1762678240993,-684.140118,0.00017998,2]
[393453608,1762678241003,-151.0,0.00017998,2]
[393453609,1762678241012,-684.140118,0.00017998,2]
[393453610,1762678241022,-151.0,0.00017998,2]
[393453611,1762678241031,-151.0,0.00017998,2]
[393453612,1762678241040,-151.0,0.00017998,2]
[393453613,1762678241048,-151.0,0.00017998,2]
[393453614,1762678241059,-151.0,0.00017998,2]
[393453615,1762678241069,-157.540143,0.00017998,2]
[393453616,1762678241081,-151.0,0.00017998,2]
[393453617,1762678241091,-1048.266309,0.00017998,2]
[393453618,1762678241101,-1048.266309,0.00017998,2]
[393453619,1762678241111,-151.0,0.00017998,2]
[393453620,1762678241120,-151.0,0.00017998,2]
[393453621,1762678241129,-1048.266309,0.00017998,2]
[393453622,1762678241139,-151.0,0.00017998,2]
[393453623,1762678241149,-1048.266309,0.00017998,2]
[393453624,1762678241159,-166.837852,0.00017998,2]
[393453625,1762678241168,-151.0,0.00017998,2]
[393453626,1762678241178,-151.0,0.00017998,2]
[393453627,1762678241188,-233.617037,0.00017998,2]
[393453628,1762678241198,-151.0,0.00017998,2]
[393453629,1762678241207,-281.786286,0.00017998,2]
[393453630,1762678241217,-281.786286,0.00017998,2]
[393453631,1762678241227,-151.0,0.00017998,2]
[393453632,1762678241236,-166.784343,0.00017998,2]
[393453633,1762678241246,-255.720552,0.00017998,2]
[393453634,1762678241255,-159.682235,0.00017998,2]
[393453635,1762678241265,-281.786286,0.00017998,2]
[393453636,1762678241274,-158.424085,0.00017998,2]
[393453637,1762678241284,-166.784343,0.00017998,2]
[393453638,1762678241294,-255.720552,0.00017998,2]
[393453639,1762678241304,-158.424085,0.00017998,2]
[393453640,1762678241313,-255.720552,0.00017998,2]
[393453641,1762678241323,-151.0,0.00017998,2]
[393453642,1762678241332,-281.786286,0.00017998,2]
[393453643,1762678241341,-166.784343,0.00017998,2]
[393453644,1762678241351,-255.720552,0.00017998,2]
[393453645,1762678241360,-151.0,0.00017998,2]
[393453646,1762678241369,-158.424085,0.00017998,2]
[393453647,1762678241379,-649.096421,0.00017998,2]
[393453648,1762678241389,-151.0,0.00017998,2]
[393453649,1762678241399,-166.784343,0.00017998,2]
[393453650,1762678241408,-151.0,0.00017998,2]
[393453651,1762678241418,-151.0,0.00017998,2]
[393453652,1762678241427,-649.096421,0.00017998,2]
[393453653,1762678241436,-158.424085,0.00017998,2]
[393453654,1762678241445,-241.372738,0.00017998,2]
[393453655,1762678241454,-151.0,0.00017998,2]
[393453656,1762678241464,-151.0,0.00017998,2]
[393453657,1762678241474,-649.096421,0.00017998,2]
[393453658,1762678241483,-241.372738,0.00017998,2]
[393453659,1762678241492,-151.0,0.00017998,2]
[393453660,1762678241502,-151.0,0.00017998,2]
[393453661,1762678241512,-241.372738,0.00017998,2]
[393453662,1762678241522,-649.096421,0.00017998,2]
[393453663,1762678241532,-151.0,0.00017998,2]
[393453664,1762678241541,-241.372738,0.00017998,2]
[393453665,1762678241551,-688.396057,0.00017998,2]
[393453666,1762678241560,-688.396057,0.00017998,2]
[393453667,1762678241570,-151.0,0.00017998,2]
[393453668,1762678241580,-151.0,0.00017998,2]
[393453669,1762678241590,-151.0,0.00017998,2]
[393453670,1762678241599,-688.396057,0.00017998,2]
[393453671,1762678241609,-688.396057,0.00017998,2]
[393453672,1762678241618,-151.0,0.00017998,2]
[393453673,1762678241628,-158.935145,0.00017998,2]
[393453674,1762678241637,-151.0,0.00017998,2]
[393453675,1762678241647,-151.0,0.00017998,2]
[393453676,1762678241657,-151.0,0.00017998,2]
[393453677,1762678241667,-151.0,0.00017998,2]
[393453678,1762678241676,-1031.362102,0.00017998,2]
[393453679,1762678241685,-1031.362102,0.00017998,2]
[393453680,1762678241695,-151.0,0.00017998,2]
[393453681,1762678241706,-696.053668,0.00017998,2]
[393453682,1762678241716,-1031.362102,0.00017998,2]
[393453683,1762678241725,-1031.362102,0.00017998,2]
[393453684,1762678241735,-696.053668,0.00017998,2]
[393453685,1762678241744,-4451.081586,0.00017998,2]
[393453686,1762678241758,-696.053668,0.00017998,2]
[393453687,1762678241769,-151.0,0.00017998,2]
[393453688,1762678241781,-151.0,0.00017998,2]
[393453689,1762678241792,-151.0,0.00017998,2]
[393453690,1762678241802,-4451.081586,0.00017998,2]
[393453691,1762678241812,-151.0,0.00017998,2]
[393453692,1762678241822,-696.053668,0.00017998,2]
[393453693,1762678241834,-151.0,0.00017998,2]
[393453694,1762678241844,-4451.081586,0.00017998,2]
[393453695,1762678241853,-170.193313,0.00017998,2]
[393453696,1762678241863,-151.0,0.00017998,2]
[393453697,1762678241872,-151.0,0.00017998,2]
[393453698,1762678241882,-4451.081586,0.00017998,2]
[393453699,1762678241891,-151.0,0.00017998,2]
[393453700,1762678241902,-153.672685,0.00017998,2]
[393453701,1762678241912,-151.0,0.00017998,2]
[393453702,1762678241923,-151.0,0.00017998,2]
[393453703,1762678241932,-151.0,0.00017998,2]
[393453704,1762678241942,-151.0,0.00017998,2]
[393453705,1762678241952,-151.0,0.00017998,2]
[393453706,1762678241962,-1035.014403,0.00017998,2]
[393453707,1762678241971,-151.0,0.00017998,2]
[393453708,1762678241981,-1035.014403,0.00017998,2]
[393453709,1762678241990,-151.0,0.00017998,2]
[393453710,1762678242000,-152.775424,0.00017998,2]
[393453711,1762678242010,-1035.014403,0.00017998,2]
[393453712,1762678242019,-151.0,0.00017998,2]
[393453713,1762678242029,-151.0,0.00017998,2]
[393453714,1762678242039,-1035.014403,0.00017998,2]
[393453715,1762678242050,-181.665505,0.00017998,2]
[393453716,1762678242060,-181.665505,0.00017998,2]
[393453717,1762678242070,-151.0,0.00017998,2]
[393453718,1762678242079,-181.665505,0.00017998,2]
[393453719,1762678242089,-151.0,0.00017998,2]
[393453720,1762678242098,-181.665505,0.00017998,2]
[393453721,1762678242107,-176.311602,0.00017998,2]
[393453722,1762678242117,-151.0,0.00017998,2]
[393453723,1762678242126,-176.311602,0.00017998,2]
[393453724,1762678242135,-176.311602,0.00017998,2]
[393453725,1762678242145,-176.311602,0.00017998,2]
[393453726,1762678242154,-151.0,0.00017998,2]
[393453727,1762678242164,-151.0,0.00017998,2]
[393453728,1762678242173,-151.0,0.00017998,2]
[393453729,1762678242182,-152.599887,0.00017998,2]
[393453730,1762678242191,-153.831829,0.00017998,2]
[393453731,1762678242201,-151.0,0.00017998,2]
[393453732,1762678242211,-170.468976,0.00017998,2]
[393453733,1762678242220,-165.702384,0.00017998,2]
[393453734,1762678242231,-153.908026,0.00017998,2]
[393453735,1762678242240,-170.468976,0.00017998,2]
[393453736,1762678242250,-170.468976,0.00017998,2]
[393453737,1762678242260,-170.468976,0.00017998,2]
[393453738,1762678242269,-151.0,0.00017998,2]
[393453739,1762678242280,-151.0,0.00017998,2]
[393453740,1762678242291,-151.0,0.00017998,2]
[393453741,1762678242301,-152.608705,0.00017998,2]
[393453742,1762678242312,-151.0,0.00017998,2]
[393453743,1762678242323,-151.0,0.00017998,2]
[393453744,1762678242333,-151.0,0.00017998,2]
[393453745,1762678242342,-151.0,0.00017998,2]
[393453746,1762678242351,-151.0,0.00017998,2]
[393453747,1762678242361,-151.0,0.00017998,2]
[393453748,1762678242371,-151.0,0.00017998,2]
[393453749,1762678242380,-151.0,0.00017998,2]
[393453750,1762678242389,-151.0,0.00017998,2]
[393453751,1762678242400,-151.0,0.00017998,2]
[393453752,1762678242410,-151.0,0.00017998,2]
[393453753,1762678242420,-151.0,0.00017998,2]
[393453754,1762678242429,-151.0,0.00017998,2]
[393453755,1762678242439,-151.0,0.00017998,2]
[393453756,1762678242448,-3889674.79479925,0.00018,2]
[393453757,1762678242457,-151.0,0.00018,2]
[393453758,1762678242467,-156.203306,0.00018,2]
[393453759,1762678242476,-1028.741315,0.00018,2]
[393453760,1762678242485,-285.051956,0.00018,2]
[393453761,1762678242495,-875.16678,0.00018,2]
[393453762,1762678242505,-928.31,0.00018,7]
[393453763,1762678242515,-1498.39,0.00018,2]
[393453764,1762678242525,-151.0,0.00018,2]
[393453765,1762678242535,-151.0,0.00018,2]
[393453766,1762678242545,-151.0,0.00018,2]
[393453767,1762678242554,-151.0,0.00018,2]
[393453768,1762678242564,-164.235426,0.00018,2]
[393453769,1762678242573,-151.0,0.00018,2]
[393453770,1762678242582,-151.0,0.00018,2]
[393453771,1762678242592,-151.0,0.00018,2]
[393453772,1762678242601,-151.0,0.00018,2]
[393453773,1762678242611,-151.0,0.00018,2]
[393453774,1762678242620,-151.0,0.00018,2]
[393453775,1762678242629,-151.0,0.00018,2]
[393453776,1762678242639,-151.0,0.00018,2]
[393453777,1762678242648,-151.0,0.00018,2]
[393453778,1762678242658,-151.0,0.00018,2]
[393453779,1762678242668,-151.0,0.00018,2]
[393453780,1762678242677,-151.0,0.00018,2]
[393453781,1762678242687,-151.0,0.00018,2]
[393453782,1762678242697,-151.0,0.00018,2]
[393453783,1762678242706,-151.0,0.00018,2]
[393453784,1762678242716,-157.307461,0.00018,2]
[393453785,1762678242725,-151.0,0.00018,2]
[393453786,1762678242735,-151.0,0.00018,2]
[393453787,1762678242745,-155.536582,0.00018,2]
[393453788,1762678242759,-152.386047,0.00018,2]
[393453789,1762678242769,-151.0,0.00018,2]
[393453790,1762678242779,-151.0,0.00018,2]
[393453791,1762678242790,-151.0,0.00018,2]
[393453792,1762678242802,-151.0,0.00018,2]
[393453793,1762678242815,-286.74040375,0.00018,2]
[393453794,1762678242833,-151.0,0.00018,2]
[393453795,1762678242843,-151.0,0.00018,2]
[393453796,1762678242862,-153.618254,0.00018,2]
[393453797,1762678242873,-151.0,0.00018,2]
[393453798,1762678242883,-151.0,0.00018,2]
[393453800,1762678242893,-153.618254,0.00018,2]
[393453802,1762678242904,-151.0,0.00018,2]
[393453803,1762678242914,-153.618254,0.00018,2]
[393453806,1762678242923,-151.0,0.00018,2]
[393453808,1762678242933,-151.0,0.00018,2]
[393453810,1762678242943,-153.618254,0.00018,2]
[393453811,1762678242953,-151.0,0.00018,2]
[393453813,1762678242963,-151.0,0.00018,2]
[393453815,1762678242972,-151.0,0.00018,2]
[393453818,1762678242982,-151.0,0.00018,2]
[393453820,1762678242993,-151.0,0.00018,2]
[393453822,1762678243002,-159.665485,0.00018,2]
[393453824,1762678243010,-151.0,0.00018,2]
[393453825,1762678243019,-151.0,0.00018,2]
[393453827,1762678243028,-151.0,0.00018,2]
[393453829,1762678243039,-151.0,0.00018,2]
[393453831,1762678243049,-151.0,0.00018,2]
[393453843,1762678243193,-151.0,0.00018,2]
[393453844,1762678243203,-151.0,0.00018,2]
[393453845,1762678243212,-151.0,0.00018,2]
[393453846,1762678243222,-151.0,0.00018,2]
[393453847,1762678243232,-151.0,0.00018,2]
[393453848,1762678243243,-151.0,0.00018,2]
[393453849,1762678243253,-151.0,0.00018,2]
[393453850,1762678243263,-151.0,0.00018,2]
[393453851,1762678243272,-151.0,0.00018,2]
[393453852,1762678243282,-212.837481,0.00018,2]
[393453853,1762678243292,-151.0,0.00018,2]
[393453854,1762678243302,-179.978429,0.00018,2]
[393453855,1762678243312,-212.837481,0.00018,2]
[393453856,1762678243322,-151.0,0.00018,2]
[393453857,1762678243331,-212.837481,0.00018,2]
[393453858,1762678243341,-151.0,0.00018,2]
[393453859,1762678243355,-212.837481,0.00018,2]
[393453860,1762678243364,-151.0,0.00018,2]
[393453861,1762678243374,-151.0,0.00018,2]
[393453862,1762678243386,-151.0,0.00018,2]
[393453863,1762678243397,-298.073251,0.00018,2]
[393453864,1762678243408,-151.0,0.00018,2]
[393453865,1762678243418,-151.0,0.00018,2]
[393453866,1762678243427,-151.0,0.00018,2]
[393453867,1762678243437,-151.0,0.00018,2]
[393453868,1762678243446,-151.0,0.00018,2]
[393453869,1762678243456,-151.0,0.00018,2]
[393453870,1762678243466,-152.441528,0.00018,2]
[393453871,1762678243477,-151.0,0.00018,2]
[393453872,1762678243487,-214.43224,0.00018,2]
[393453873,1762678243496,-151.0,0.00018,2]
[393453874,1762678243505,-214.43224,0.00018,2]
[393453875,1762678243515,-214.43224,0.00018,2]
[393453876,1762678243525,-214.43224,0.00018,2]
[393453877,1762678243535,-151.0,0.00018,2]
[393453878,1762678243547,-151.0,0.00018,2]
[393453879,1762678243557,-151.0,0.00018,2]
[393453880,1762678243567,-151.0,0.00018,2]
[393453881,1762678243576,-206.496713,0.00018,2]
[393453882,1762678243585,-206.496713,0.00018,2]
[393453883,1762678243594,-206.496713,0.00018,2]
[393453884,1762678243603,-151.0,0.00018,2]
[393453885,1762678243613,-206.496713,0.00018,2]
[393453886,1762678243622,-247.632773,0.00018,2]
[393453888,1762678243631,-151.0,0.00018,2]
[393453890,1762678243641,-151.0,0.00018,2]
[393453892,1762678243651,-151.0,0.00018,2]
[393453894,1762678243660,-156.131667,0.00018,2]
[393453896,1762678243669,-151.0,0.00018,2]
[393453898,1762678243678,-151.0,0.00018,2]
[393453900,1762678243688,-151.0,0.00018,2]
[393453902,1762678243697,-151.0,0.00018,2]
[393453903,1762678243707,-151.0,0.00018,2]
[393453904,1762678243716,-151.0,0.00018,2]
[393453905,1762678243725,-151.0,0.00018,2]
[393453906,1762678243735,-151.0,0.00018,2]
[393453907,1762678243744,-151.0,0.00018,2]
[393453908,1762678243756,-151.0,0.00018,2]
[393453909,1762678243766,-151.0,0.00018,2]
[393453910,1762678243776,-151.0,0.00018,2]
[393453912,1762678243786,-151.0,0.00018,2]
[393453914,1762678243796,-151.0,0.00018,2]
[393453915,1762678243807,-151.0,0.00018,2]
[393453916,1762678243819,-151.0,0.00018,2]
[393453917,1762678243831,-151.0,0.00018,2]
[393453918,1762678243840,-151.0,0.00018,2]
[393453919,1762678243850,-151.0,0.00018,2]
[393453920,1762678243860,-151.0,0.00018,2]
[393453921,1762678243870,-151.0,0.00018,2]
[393453922,1762678243880,-160.983158,0.00018,2]
[393453924,1762678243890,-151.0,0.00018,2]
[393453926,1762678243900,-153.227742,0.00018,2]
[393453927,1762678243914,-153.227742,0.00018,2]
[393453928,1762678243924,-153.227742,0.00018,2]
[393453929,1762678243934,-151.0,0.00018,2]
[393453930,1762678243944,-153.227742,0.00018,2]
[393453931,1762678243954,-177.659509,0.00018,2]
[393453932,1762678243963,-151.0,0.00018,2]
[393453933,1762678243973,-151.0,0.00018,2]
[393453934,1762678243983,-151.0,0.00018,2]
[393453935,1762678243993,-151.0,0.00018,2]
[393453936,1762678244003,-151.0,0.00018,2]
[393453937,1762678244013,-151.0,0.00018,2]
[393453938,1762678244023,-151.0,0.00018,2]
[393453939,1762678244033,-151.0,0.00018,2]
[393453940,1762678244043,-151.0,0.00018,2]
[393453941,1762678244052,-151.0,0.00018,2]
[393453942,1762678244062,-158.108052,0.00018,2]
[393453943,1762678244072,-151.0,0.00018,2]
[393453944,1762678244081,-151.0,0.00018,2]
[393453945,1762678244091,-270.428426,0.00018,2]
[393453946,1762678244101,-151.0,0.00018,2]
[393453947,1762678244111,-151.0,0.00018,2]
[393453948,1762678244120,-151.0,0.00018,2]
[393453949,1762678244131,-684.140118,0.00018,2]
[393453950,1762678244141,-151.0,0.00018,2]
[393453951,1762678244152,-151.99265,0.00018,2]
[393453952,1762678244162,-684.140118,0.00018,2]
[393453953,1762678244172,-151.0,0.00018,2]
[393453954,1762678244183,-684.140118,0.00018,2]
[393453955,1762678244192,-151.0,0.00018,2]
[393453956,1762678244202,-684.140118,0.00018,2]
[393453957,1762678244212,-151.0,0.00018,2]
[393453958,1762678244222,-151.0,0.00018,2]
[393453959,1762678244231,-151.0,0.00018,2]
[393453960,1762678244241,-158.704062,0.00018,2]
[393453961,1762678244251,-178.888518,0.00018,2]
[393453962,1762678244261,-168.644288,0.00018,2]
[393453963,1762678244271,-1048.266309,0.00018,2]
[393453964,1762678244280,-1048.266309,0.00018,2]
[393453965,1762678244290,-1048.266309,0.00018,2]
[393453966,1762678244300,-151.0,0.00018,2]
[393453967,1762678244310,-151.0,0.00018,2]
[393453968,1762678244321,-1048.266309,0.00018,2]
[393453969,1762678244330,-151.0,0.00018,2]
[393453970,1762678244339,-151.0,0.00018,2]
[393453971,1762678244348,-151.0,0.00018,2]